Cogmind - Beta 11.1 @@@ ROGUE MODE // 2022.04.28 @ 16:03:51 Player: Decinym Result: Destroyed by 8R-AWN with 8R-AWN's Boregun Performance ------------- Evolutions (1) 500 Regions Visited (5) 1000 Robots Destroyed (45) 225 Value Destroyed (1018) 1018 Prototype IDs (42) 840 Alien Tech Used (0) 0 Bonus (-1395) -1395 TOTAL SCORE: 2188 Bonus ------- Follower Combat Kills 187 Aligned with FarCom 300 Friendly Fire -1882 Cogmind --------- Core Integrity 0/400 Matter 117/300 Energy 290/290 System Corruption 1% Temperature Cool (0) Movement Treading (320) Ox2 Location -9/Exiles Parts ------- > --- POWER (1) -------- Improved Deuterium Engine > --- PROPULSION (2) --- Light Treads Improved Treads > --- UTILITY (4) ------ Huge Storage Unit Improved Targeting Computer Core Shielding Medium Armor Plating > --- WEAPON (2) ------- Heavy Assault Rifle Heavy Assault Rifle > --- INVENTORY (25) --- Ion Engine Cooled Ion Engine Cooled Ion Engine Light Treads Advanced Heat Sink High-capacity Matter Pod (200) YI-UF0's Bottomless Matter Pit Salvage Targeting Computer Improved Targeting Computer Light Armor Plating Medium Armor Plating Medium Armor Plating Medium Armor Plating Hardened Light Armor Plating Heavy Assault Rifle YI-UF0's Doublenader Plasma Cutter Mace Mining Claw Longsword +1 Peak State ------------ > --- POWER ------------ Improved Deuterium Engine > --- PROPULSION ------- Light Treads Improved Treads > --- UTILITY ---------- Huge Storage Unit Improved Targeting Computer Core Shielding Medium Armor Plating > --- WEAPON ----------- Autogun Longsword +1 > --- INVENTORY -------- Ion Engine Cooled Ion Engine Cooled Ion Engine Light Treads Light Treads Advanced Heat Sink High-capacity Matter Pod YI-UF0's Bottomless Matter Pit Salvage Targeting Computer Improved Targeting Computer Light Armor Plating Medium Armor Plating Medium Armor Plating Medium Armor Plating Hardened Light Armor Plating Heavy Assault Rifle Heavy Assault Rifle Heavy Assault Rifle YI-UF0's Doublenader Plasma Cutter Mace Mining Claw [Rating: 28] Favorites ----------- Power Ion Engine Engine Ion Engine Propulsion Light Treads Treads Light Treads Leg Aluminum Leg Utility Huge Storage Unit Device Heat Sink Storage Huge Storage Unit Processor Improved Targeting Computer Protection Medium Armor Plating Weapon Autogun Energy Gun Medium Laser Energy Cannon Advanced Beam Cannon Ballistic Gun Autogun Launcher YI-UF0's Doublenader Special Weapon Plasma Cutter Slashing Weapon Longsword +1 Special Melee Weapon Datajack Build | -11 -10 -10 -9 -9 -9 ------- Run | Scr Mat Min Mat Min Exi Slots Evolved 2 | . . . 2 . . Power . | . . . . . . Propulsion . | . . . . . . Utility 2 | . . . 2 . . Weapon . | . . . . . . Parts Attached 52 | . 5 4 27 5 11 Power 4 | . . 1 2 . 1 Engine 4 | . . 1 2 . 1 Core . | . . . . . . Reactor . | . . . . . . Propulsion 15 | . 2 . 9 2 2 Treads 13 | . 2 . 7 2 2 Leg 2 | . . . 2 . . Wheel . | . . . . . . Hover . | . . . . . . Flight . | . . . . . . Utility 16 | . 1 2 10 2 1 Device 1 | . . . 1 . . Storage 3 | . 1 . 1 1 . Processor 5 | . . 1 4 . . Hackware . | . . . . . . Protection 7 | . . 1 4 1 1 Artifact . | . . . . . . Weapon 17 | . 2 1 6 1 7 Energy Gun 4 | . 1 1 2 . . Energy Cannon 1 | . . . 1 . . Ballistic Gun 7 | . 1 . 3 . 3 Ballistic Cannon . | . . . . . . Launcher 1 | . . . . . 1 Special Weapon 2 | . . . . 1 1 Impact Weapon . | . . . . . . Slashing Weapon 1 | . . . . . 1 Piercing Weapon . | . . . . . . Special Melee Weapon 1 | . . . . . 1 Unidentified Prototypes 3 | . . . 2 . 1 Parts Lost 16 | . . 3 10 . 3 Power 2 | . . 1 1 . . Propulsion 5 | . . 1 2 . 2 Utility 4 | . . . 4 . . Weapon 5 | . . 1 3 . 1 Highest Loss Streak 6 | . . 3 6 . 3 To Critical Strikes 1 | . . . . . 1 Average Slot Usage (%) 89 | . 86 85 90 100 85 Engine 12 | . 14 13 11 11 11 Treads 18 | . 22 14 15 22 21 Leg 1 | . 5 . 4 . . Storage 12 | . 15 14 11 11 11 Processor 12 | . . 13 19 11 11 Protection 10 | . . . 5 21 22 Energy Gun 6 | . 25 14 4 . . Ballistic Gun 11 | . 2 14 14 19 2 Special Weapon 1 | . . . . 2 1 Naked Turns . | . . . . . . Heaviest Build 104 | 14 94 91 101 102 104 Greatest Support 40 | 20 40 40 40 40 40 Greatest Overweight (x) 4 | . 2 4 4 2 2 Average Overweight (x) 2 | . 1 3 2 2 2 Largest Inventory Capacity 25 | . 25 25 25 25 25 Average Capacity 24 | . 21 25 25 25 25 Most Carried 25 | . 8 8 25 25 25 Average Carried 16 | . 6 7 17 24 24 Final Capacity 25 | 8 25 25 25 25 25 Final Carried 25 | 6 7 8 25 25 20 Class Distribution -------------------- 98% | Mutant Dominant Class ---------------- Mutant | -10/Materials Mutant | -10/Mines Mutant | -9/Materials Mutant | -9/Mines Mutant | -9/Exiles Resources | -11 -10 -10 -9 -9 -9 ----------- Run | Scr Mat Min Mat Min Exi Matter Collected 1303 | 178 83 42 641 295 64 Remotely . | . . . . . . Salvage Created 1899 | . 408 100 1075 295 21 Parts 105 | . 19 2 63 21 . Haulers Intercepted 2 | . . . 2 . . Recyclers Shooed 3 | . 2 . 1 . . Parts Field Recycled . | . . . . . . Retrieved Matter . | . . . . . . Parts Self-Destructed . | . . . . . . Prevented . | . . . . . . Kills | -11 -10 -10 -9 -9 -9 ------- Run | Scr Mat Min Mat Min Exi Combat Hostiles Destroyed 34 | . 7 2 19 4 2 Guns 27 | . 4 2 17 4 . Cannons 2 | . . . 2 . . AOE 5 | . 3 . . . 2 Classes Destroyed 9 | . 3 . 4 1 1 Worker 2 | . . . . 2 . Builder 1 | . . . 1 . . Hauler 2 | . . . 2 . . Recycler 5 | . 3 . 2 . . Watcher 1 | . . . 1 . . Swarmer 11 | . 3 . 6 2 . Grunt 17 | . 4 2 9 2 . Sentry 5 | . . . 5 . . Assembled 5 | . . . . . 5 Best Kill Streak 5 | . 5 1 5 2 2 Combat Bots Only 3 | . 3 1 3 2 2 Max Kills in Single Turn 3 | . 2 1 2 2 3 Gunslinging 1 | . . . . 1 . Exploded 2 | . 2 . . . 2 Melee . | . . . . . . Uniques/NPCs Destroyed 2 | . . . . 1 1 YI-UF0 (-9/Mines) EX-DEC (-9/Exiles) Combat | -11 -10 -10 -9 -9 -9 -------- Run | Scr Mat Min Mat Min Exi Damage Taken 3132 | . 322 220 1864 57 669 Core 528 | . 92 18 311 15 92 Absorbed by Shields . | . . . . . . Redirected to Shielding 21 | . . . . . 21 Core Remaining (%) 78 | 100 . 56 . . . Volleys Fired 172 | . 28 17 88 21 18 Largest 2 | . 2 2 2 2 2 Hottest 108 | . 90 70 108 46 70 Shots Fired 317 | . 55 34 170 28 30 Gun 286 | . 55 34 153 21 23 Cannon 17 | . . . 17 . . Launcher 2 | . . . . . 2 Special 12 | . . . . 7 5 Kinetic 210 | . 11 17 138 21 23 Thermal 81 | . 25 12 32 7 5 Explosive 2 | . . . . . 2 Electromagnetic 24 | . 19 5 . . . Robot Hit Streak 10 | . 10 5 8 6 8 Robot Miss Streak 7 | . 3 4 7 3 2 Penetration Max . | . . . . . . Secondary Targets 5 | . 1 . 3 1 . Max Gunslinging Chain 1 | . 1 . 1 1 . Shots Hit Robots 200 | . 37 20 99 19 25 Core Hits 86 | . 18 5 40 10 13 Critical Kills . | . . . . . . Critical Parts Destroyed 1 | . . . 1 . . Critical Strikes 7 | . 5 1 1 . . Burn 6 | . 5 1 . . . Destroy 1 | . . . 1 . . Melee Attacks 5 | . . . . . 5 Impact . | . . . . . . Slashing 1 | . . . . . 1 Piercing . | . . . . . . Sneak Attacks 4 | . . . . . 4 Combat Hostiles . | . . . . . . Follow-up Attacks . | . . . . . . Damage Inflicted 3447 | . 598 220 1686 295 648 Guns 2673 | . 457 210 1521 253 232 Cannons 165 | . . . 165 . . Explosions 553 | . 141 . . . 412 Melee . | . . . . . . Ramming 10 | . . 10 . . . Kinetic 2028 | . 84 96 1363 253 232 Thermal 798 | . 353 76 323 42 4 Explosive 412 | . . . . . 412 Electromagnetic 199 | . 161 38 . . . Impact . | . . . . . . Slashing . | . . . . . . Piercing . | . . . . . . Highest Corruption 1 | . . . 1 1 1 Average Corruption 1 | . . . 1 1 1 Corruption Purged . | . . . . . . Corruption Blocked . | . . . . . . Effects 36 | . . . 3 16 17 Message Errors 4 | . . . 1 3 . Matter Fused 9 | . . . 1 4 4 Heat Flow Errors 10 | . . . . 5 5 Energy Discharges 4 | . . . . 2 2 Data Loss (minor) 5 | . . . 1 1 3 Data Loss (major) 3 | . . . . 1 2 Misfires 1 | . . . . . 1 Overload Shots . | . . . . . . Overflow Damage 15 | . 3 . . . 12 Projectiles . | . . . . . . Explosions 15 | . 3 . . . 12 Melee . | . . . . . . Knockbacks . | . . . . . . Impact . | . . . . . . Kinetic . | . . . . . . Secondary . | . . . . . . Self-Inflicted Damage 38 | . 38 . . . . Shots 1 | . 1 . . . . Rammed 1 | . . 1 . . . Targets Rammed 1 | . . 1 . . . Kicked . | . . . . . . Crushed . | . . . . . . Highest Temperature 375 | . 300 157 375 276 235 Average Temperature 76 | . 109 71 57 81 82 Received Heat Transfer 825 | . 144 126 528 27 . Effects 2 | . 1 . 1 . . Interference 1 | . 1 . . . . Short Circuit 1 | . . . 1 . . Siege Activations . | . . . . . . Robots Corrupted . | . . . . . . Combat Hostiles . | . . . . . . Parts Fried . | . . . . . . Impact Corruptions . | . . . . . . Robots Melted . | . . . . . . Combat Hostiles . | . . . . . . Parts Melted 3 | . 2 1 . . . Heat Transferred 2349 | . 1199 296 670 148 36 Parts Sabotaged . | . . . . . . Parts Stolen . | . . . . . . Parts Stripped . | . . . . . . Power Chain Reactions 3 | . 3 . . . . Missiles Intercepted . | . . . . . . Alert | -11 -10 -10 -9 -9 -9 ------- Run | Scr Mat Min Mat Min Exi Peak Influence 355 | . 178 37 355 244 . Initial 105 | . . 17 . 105 . Average 52 | . 80 4 126 50 . Maximum Alert Level 1 | . . . 1 1 . Low Security (%) 89 | . 100 100 73 85 . Level 1 10 | . . . 26 14 . Level 2 . | . . . . . . Level 3 . | . . . . . . Level 4 . | . . . . . . Level 5 . | . . . . . . High Security . | . . . . . . Max Security . | . . . . . . Squads Dispatched 3 | . 1 . 2 . . Investigation 1 | . . . 1 . . Extermination . | . . . . . . Reinforcement 2 | . 1 . 1 . . Assault . | . . . . . . Garrison . | . . . . . . Intercept . | . . . . . . Searches Triggered . | . . . . . . Construction Impeded . | . . . . . . Haulers Reinforced . | . . . . . . Active Scanning Responses . | . . . . . . Cargo Convoy Interrupts . | . . . . . . Stealth | -11 -10 -10 -9 -9 -9 --------- Run | Scr Mat Min Mat Min Exi Distress Signals 5 | . . . 5 . . Communications Jammed . | . . . . . . Distress Signals . | . . . . . . Times Spotted 62 | . 11 2 40 4 5 Peak Tracking Total 7 | . 4 2 7 1 5 Tactical Retreats . | . . . . . . Traps | -11 -10 -10 -9 -9 -9 ------- Run | Scr Mat Min Mat Min Exi Traps Triggered 1 | . . . 1 . . Indirectly . | . . . . . . Trap Hack Attempts . | . . . . . . Triggered . | . . . . . . Disarmed . | . . . . . . Reprogrammed . | . . . . . . Reused . | . . . . . . Traps Extracted . | . . . . . . Installed . | . . . . . . Triggered . | . . . . . . Machines | -11 -10 -10 -9 -9 -9 ---------- Run | Scr Mat Min Mat Min Exi Machines Disabled 7 | . . . 3 . 4 Max in Single Turn 2 | . . . 1 . 2 Machines Sabotaged . | . . . . . . Garrisons Compromised . | . . . . . . Overloaded Fab Kills . | . . . . . . Hacking | -11 -10 -10 -9 -9 -9 --------- Run | Scr Mat Min Mat Min Exi Machines Accessed 8 | . 3 . 3 . 2 Terminals 5 | . 3 . 2 . . Fabricators . | . . . . . . Repair Stations . | . . . . . . Recycling Units . | . . . . . . Scanalyzers 1 | . . . 1 . . Garrison Access . | . . . . . . Total Hacks 25 | . 10 . 13 . 2 Successful 12 | . 3 . 7 . 2 Failed 13 | . 7 . 6 . . Catastrophic 4 | . 1 . 3 . . Database Lockouts . | . . . . . . Manual 12 | . 5 . 6 . 1 Terminals 18 | . 10 . 8 . . Fabricators . | . . . . . . Repair Stations . | . . . . . . Recycling Units . | . . . . . . Scanalyzers 5 | . . . 5 . . Garrison Access . | . . . . . . Terminal Hacks 6 | . 1 . 3 . 2 Record 1 | . . . . . 1 Prototype ID Bank 1 | . 1 . . . . Branch Access Points 1 | . . . 1 . . Unreport Threat 1 | . . . 1 . . Zone Layout 1 | . . . 1 . . EX-Prototype ID Bank 1 | . . . . . 1 Fabricator Hacks . | . . . . . . Repair Station Hacks . | . . . . . . Recycling Unit Hacks . | . . . . . . Scanalyzer 4 | . . . 4 . . Insert Component 2 | . . . 2 . . Analyze 2 | . . . 2 . . Garrison Access Hacks . | . . . . . . Unauthorized Hacks 2 | . 2 . . . . Terminals 2 | . 2 . . . . Botnet 2 | . 2 . . . . Fabricators . | . . . . . . Repair Stations . | . . . . . . Recycling Units . | . . . . . . Scanalyzers . | . . . . . . Garrison Access . | . . . . . . Data Cores Recovered . | . . . . . . Used . | . . . . . . Hacking Detections 6 | . 3 . 3 . . Full Trace Events 1 | . 1 . . . . Feedback Events . | . . . . . . Feedback Blocked . | . . . . . . Robot Schematics Acquired . | . . . . . . Robots Built . | . . . . . . Authchips . | . . . . . . Time . | . . . . . . Total Robot Build Rating . | . . . . . . Part Schematics Acquired 2 | . . . 2 . . Parts Built . | . . . . . . Authchips . | . . . . . . Time . | . . . . . . Total Part Build Rating . | . . . . . . Parts Repaired . | . . . . . . Time . | . . . . . . Parts Recycled . | . . . . . . Recycled Matter . | . . . . . . Retrieved Matter . | . . . . . . Retrieved Components . | . . . . . . Parts Scanalyzed 2 | . . . 2 . . Part Schematics Acquired 2 | . . . 2 . . Parts Damaged . | . . . . . . Bothacking | -11 -10 -10 -9 -9 -9 ------------ Run | Scr Mat Min Mat Min Exi Used RIF Installer . | . . . . . . Robots Hacked 4 | . . . . . 4 Non-combat 3 | . . . . . 3 Combat 1 | . . . . . 1 Robot Hacks Applied 4 | . . . . . 4 parse_system 4 | . . . . . 4 Relay Couplers Released . | . . . . . . Fabnet Peak Effective % . | . . . . . . Robots Rewired . | . . . . . . Allies Hacked . | . . . . . . Hacks Repelled . | . . . . . . Allies | -11 -10 -10 -9 -9 -9 -------- Run | Scr Mat Min Mat Min Exi Total Allies 4 | . . 3 . 1 . Largest Group 3 | . . 3 3 1 1 Highest-Rated Group 40 | . . 40 40 31 31 Highest-Rated Ally 31 | . . 16 16 31 31 Total Orders . | . . . . . . Ally Attacks 65 | . . . 46 4 15 Total Damage 1355 | . . . 497 43 815 Kills 13 | . . . 9 1 3 Allies Corrupted 1 | . . . . . 1 Allies Melted . | . . . . . . Turrets Deployed 3 | . . . . . 3 Intel | -11 -10 -10 -9 -9 -9 ------- Run | Scr Mat Min Mat Min Exi Robot Analysis Total . | . . . . . . Derelict Logs Recovered 3 | . . 2 . 1 . Drone Launches . | . . . . . . Drone Recoveries . | . . . . . . Exploration | -11 -10 -10 -9 -9 -9 ------------- Run | Scr Mat Min Mat Min Exi Turns Passed 9707 | . 550 3007 1756 2125 2269 Spaces Moved 2537 | 1 187 621 407 642 679 Core . | . . . . . . Treads 2378 | . 117 621 319 642 679 Legs 159 | 1 70 . 88 . . Wheels . | . . . . . . Hover . | . . . . . . Flight . | . . . . . . Fastest Speed 120 | 120 120 320 320 320 320 Average Speed 358 | 120 245 475 357 320 320 Slowest Speed 480 | 120 320 480 480 320 320 Overloaded Moves . | . . . . . . Propulsion Burnouts . | . . . . . . Robots Hopped . | . . . . . . Cave-ins Triggered . | . . . . . . Exploration Rate (%) 58 | 2 40 99 52 93 66 Regions Visited 5 Branch Regions 3 Pre-discovered Areas 2 | . . . . 1 1 Known Exits Taken 1 | . . . 1 . . Unknown Exits Taken 4 | 1 1 1 . 1 . Scrap Searched 2 | . . 1 . 1 . Spaces Dug . | . . . . . . Terrain Destroyed 29 | . 4 . . . 25 Melee . | . . . . . . Projectile . | . . . . . . AOE 29 | . 4 . . . 25 Terrain Rammed . | . . . . . . Walls Destroyed . | . . . . . . Machines Disabled . | . . . . . . Actions | -11 -10 -10 -9 -9 -9 --------- Run | Scr Mat Min Mat Min Exi Total 2868 | . 227 646 566 686 743 Wait 25 | . 1 . 9 2 13 Move 2532 | . 186 620 406 641 679 Hop . | . . . . . . Pick Up 48 | . 4 4 26 7 7 Fast Attach 9 | . . . 8 1 . Attach 21 | . 1 3 11 . 6 Detach 2 | . . . 1 . 1 Swap 22 | . 4 1 8 4 5 Drop 31 | . 3 . 9 10 9 Fire 172 | . 28 17 88 21 18 Melee 5 | . . . . . 5 Ram . | . . . . . . Kick . | . . . . . . Crush 1 | . . 1 . . . Escape Stasis . | . . . . . . Rewire . | . . . . . . Trap . | . . . . . . Miscellaneous . | . . . . . . Route ------- -11/Scrapyard -10/Materials (discovered 2 exits: *Mat / [*Min]) -10/Mines (discovered 2 exits: *Mat x2) -9/Materials -9/Mines (discovered 3 exits: [*Mat x2] / *Exi) -9/Exiles History --------- Turn | Location | Event 1 | -11/Scrapyard | Discovered new exit (range 0) 1 | -11/Scrapyard | Entered Materials 313 | -10/Materials | Build established: Mutant 354 | -10/Materials | Discovered new exit (range 14) 497 | -10/Materials | Discovered new exit (range 11) 551 | -10/Materials | Entered Mines 677 | -10/Mines | Lost 3 parts (1p1n1w) 714 | -10/Mines | Discovered new exit (range 5) 992 | -10/Mines | Learned Materials terminal intel 1224 | -10/Mines | Discovered new exit (range 5) 3524 | -10/Mines | Assisted by bots powering up and referring to "LRC-V3" 3558 | -10/Mines | Entered Materials 3558 | -9/Materials | Accompanied by 3 allies 3558 | -9/Materials | Evolved 2 slots: Utility x2 3559 | -9/Materials | Loaded intel: 12 terminal locations 4285 | -9/Materials | Identified exit to Mines 4358 | -9/Materials | Core integrity fell below 50% 4385 | -9/Materials | Lost 6 parts (1p1n3u1w) 5314 | -9/Materials | Entered Mines 5317 | -9/Mines | Escorted by a lone wolf Derelict 5337 | -9/Mines | Learned location of Storage (-8) 5359 | -9/Mines | Learned Materials terminal intel 5422 | -9/Mines | Discovered new exit (range 9) 5448 | -9/Mines | Joined a pair of Derelicts in attacking an 0b10 outpost 5450 | -9/Mines | Core integrity fell below 20% 6884 | -9/Mines | YI-UF0 nonchalantly dropped a Grenade Launcher on the ground 6992 | -9/Mines | Destroyed YI-UF0 7008 | -9/Mines | Found Prototype Storage 7022 | -9/Mines | Found Prototype Launcher 7167 | -9/Mines | Discovered new exit (range 6) 7423 | -9/Mines | Deemed a non-threat by the Exiles lab entrance 7427 | -9/Mines | Discovered new exit (range 5) 7439 | -9/Mines | Entered Exiles 7439 | -9/Exiles | Accompanied by 1 ally 7516 | -9/Exiles | Met 8R-AWN 7571 | -9/Exiles | Met EX-HEX 7663 | -9/Exiles | Met EX-BIN 7705 | -9/Exiles | Aligned with FarCom system 7708 | -9/Exiles | Given EX-Vault access code 7788 | -9/Exiles | Opened EX-Vault 7811 | -9/Exiles | Found Deploy-a-Sentry 7816 | -9/Exiles | Found Deploy-a-Sentry 7884 | -9/Exiles | Warned to stay clear of 0b10 Research branches 7993 | -9/Exiles | Met EX-DEC 8026 | -9/Exiles | DAS Turret deployed 8030 | -9/Exiles | DAS Turret deployed 8157 | -9/Exiles | Learned location of Zion (-7) 8342 | -9/Exiles | Found Deploy-a-Sentry 8595 | -9/Exiles | DAS Turret deployed 8782 | -9/Exiles | Found Longsword +1 9615 | -9/Exiles | Identified YI-UF0's Doublenader 9632 | -9/Exiles | Attacked by the Exiles 9639 | -9/Exiles | Allies destroyed EX-DEC 9708 | -9/Exiles | Destroyed by 8R-AWN with 8R-AWN's Boregun Last Messages --------------- 09672_ The unstable cave ceiling collapses. 09675_ HV Slug penetrates Wall. 09675_ Penetrated by HV Slug. 09677_ HV Slug penetrates Machine. 09679_ Penetrated by HV Slug. 09679_ Autogun destroyed. 09680_ The unstable cave ceiling collapses. 09681_ Penetrated by HV Slug. 09684_ Critical hit (Destroy). 09684_ Penetrated by HV Slug. 09685_ The unstable cave ceiling collapses. 09686_ Penetrated by HV Slug. 09688_ Destroyed 8R-AWN's Armor/TH. 09690_ The unstable cave ceiling collapses. 09691_ Penetrated by HV Slug. 09697_ Machine disabled. 09700_ HV Slug penetrates Wall. 09700_ Penetrated by HV Slug. 09704_ Lgt. Treads destroyed. 09704_ Penetrated by HV Slug. Map ----- +----------------------------------------------------+ | """#???????????????????????????????????? | | """#???????????????????????????????????? | | """#???????????????????????????????????? | | """#???????????????????????????????????? | | """""??????????????????????????????????? | | """#???????????????????????????????????? | | "X" """"???????????????????????????????????? | | """ #???????????????????????????????????? | | """""""""#???????????????????????????????????? | | ###########???????????????????????????????????? | | #?????????????????????????????????????????????? | | #?????????????????????????????????????????????? | | ##????????????????????????????????????????????? | | ##???####"######?????????????????????????????? | | #####"""" """"##????????????????????????????? | | " """ """"##???????????????????????????? | | "" " #???????????????????????????? | | """#???????????????????????????? | | a"#???????????#####???????????? | | " "##?????????##" #???????????? | | % "###???????#"/ #???????????? | | " ""#??????##" ##??????????? | | """ "#????### ###????????# | | ####""" ;#???# ########## | | ???##""" % ##### % #""""## | | ????#"""" @;;; * | | ????#"" % ## * | | ???#"""" g #### | | ??"" %""#?#"""""#### | | "" #" "##?#######??#### | | ######??????????????### | | ##?????????????????????? | | " ##??????????????????????? | | "" "" ""#???????????????????????? | | ##""" " " ""# % "##???????????????????????? | | ???####""" """## # ????????????????????????? | | ??????###""""## ## ##???????????????????????? | | ????????####??# # # ###????????????????????????? | | ??????????????#### #?????????????????????????? | | ??????????????????######?????????????????????????? | | ?????????????????????????????????????????????????? | | ?????????????????????????????????????????????????? | | ?????????????????????????????????????????????????? | | ?????????????????????????????????????????????????? | | ?????????????????????????????????????????????????? | | ?????????????????????????????????????????????????? | | ?????????????????????????????????????????????????? | | ?????????????????????????????????????????????????? | | ?????????????????????????????????????????????????? | | ?????????????????????????????????????????????????? | +----------------------------------------------------+ Best States ------------- Heat Dissipation 38 Energy Generation 16 Energy Capacity 290 Matter Stores 300 Matter Capacity 300 Sight Range 18 Terrain Scan Density 10 Armor Coverage 225 Core Shielding 20 Evasion (%) 55 Targeting Accuracy 6 Recoil Reduction 2 Item Schematics ----------------- Autogun | -9/Materials | Scanalyzed Huge Storage Unit | -9/Materials | Scanalyzed Robot Schematics ------------------ None Fabricated ------------ Nothing Alien Tech Used ----------------- None Achievements -------------- None Challenges ------------ None Game ------ Seed HypervelocityAlertAirjet Manual? 0 Play Time 00:26:22 Cumulative 319.0 hours Start 2022.04.28 @ 15:39:09 End 2022.04.28 @ 16:03:51 Sessions 1 Manual Loads 0 Difficulty Rogue Special Mode None Game No. 354 Rogue 354 Adventurer 0 Explorer 0 Win Type - Total 28 Types 17/3/2/1/2/0/3/0/0 Lore% 86 Gallery% 84 Achievement% 80 Wizard Run 0 Options --------- ASCII 0 Keyboard 0 Movement Arrows Keybinds 0 Fullscreen 2 Font 18/SmallcapsGlow Map View 76x50 Tactical HUD 1 Map Filters NONE Filters NONE Steam 1 RUN: f0d9753f-7d48-4fb8-95bf-8c376b9588fe